Cogmind - Beta 13 @@@ ROGUE MODE // 2024.07.02 @ 09:47:35 Player: RAT Result: Destroyed by L-31 Rogue with Katana Performance ------------- Evolutions (2) 1000 Regions Visited (3) 600 Robots Destroyed (42) 210 Value Destroyed (1093) 1093 Prototype IDs (2) 40 Alien Tech Used (0) 0 Bonus (51) 51 TOTAL SCORE: 2994 Bonus ------- High Alert Combat Kills 51 Cogmind --------- Core Integrity 0/550 Matter 99/300 Energy 100/100 System Corruption 0% Temperature Cool (9) Movement Core (700) Ox13 Location -8/Materials Parts ------- > --- POWER (1) -------- (None) > --- PROPULSION (4) --- (None) > --- UTILITY (4) ------ High-capacity Storage Unit > --- WEAPON (2) ------- (None) > --- INVENTORY (20) --- Ion Engine Improved Heat Sink Assault Rifle Light Assault Rifle Light Assault Rifle Peak State ------------ > --- POWER ------------ Light Deuterium Engine > --- PROPULSION ------- Aluminum Leg Aluminum Leg Aluminum Leg Aluminum Leg > --- UTILITY ---------- High-capacity Storage Unit Visual Processing Unit Improved Sensor Array Improved Signal Interpreter > --- WEAPON ----------- Heavy Particle Gun Shotgun > --- INVENTORY -------- Ion Engine Ion Engine Improved Ion Engine Aluminum Leg Aluminum Leg Improved Heat Sink Assault Rifle Light Assault Rifle Light Assault Rifle Grenade Launcher [Rating: 23] Favorites ----------- Power Ion Engine Engine Ion Engine Propulsion Aluminum Leg Leg Aluminum Leg Utility Visual Processing Unit Device Improved Sensor Array Storage Small Storage Unit Processor Visual Processing Unit Weapon Shotgun Energy Gun Heavy Particle Gun Ballistic Gun Shotgun Ballistic Cannon Light Cannon Launcher Grenade Launcher Build | -11 -10 -9 -8 ------- Run | Yrd Mat Mat Mat Slots Evolved 4 | . . 2 2 Power . | . . . . Propulsion 2 | . . 2 . Utility 2 | . . . 2 Weapon . | . . . . Parts Attached 40 | 6 6 16 12 Power 7 | 1 1 4 1 Engine 7 | 1 1 4 1 Core . | . . . . Reactor . | . . . . Propulsion 14 | 2 1 9 2 Treads . | . . . . Leg 14 | 2 1 9 2 Wheel . | . . . . Hover . | . . . . Flight . | . . . . Utility 10 | 1 2 1 6 Device 3 | . . . 3 Storage 4 | 1 1 1 1 Processor 3 | . 1 . 2 Hackware . | . . . . Protection . | . . . . Artifact . | . . . . Weapon 9 | 2 2 2 3 Energy Gun 1 | . . . 1 Energy Cannon . | . . . . Ballistic Gun 6 | 2 1 2 1 Ballistic Cannon 1 | . 1 . . Launcher 1 | . . . 1 Special Weapon . | . . . . Impact Weapon . | . . . . Slashing Weapon . | . . . . Piercing Weapon . | . . . . Special Melee Weapon . | . . . . Unidentified Prototypes 2 | . . 1 1 Parts Lost 15 | . 1 4 10 Power 2 | . 1 . 1 Propulsion 6 | . . 1 5 Utility 2 | . . 1 1 Weapon 5 | . . 2 3 Highest Loss Streak 10 | . 1 2 10 To Critical Strikes . | . . . . Average Slot Usage (%) 92 | . 92 96 85 Engine 11 | . 14 11 7 Leg 34 | . 28 44 30 Device 2 | . . . 9 Storage 12 | . 14 11 10 Processor 8 | . 7 7 10 Ballistic Gun 18 | . 25 14 11 Ballistic Cannon 3 | . 2 7 . Naked Turns . | . . . . Heaviest Build 72 | 10 21 33 72 Greatest Support 40 | 20 20 40 40 Greatest Overweight (x) 14 | 2 1 . 14 Average Overweight (x) . | . . . 1 Largest Inventory Capacity 20 | 8 10 15 20 Average Capacity 12 | 7 8 12 19 Most Carried 10 | 6 9 9 10 Average Carried 6 | 4 6 6 7 Final Capacity 20 | 8 10 15 20 Final Carried 8 | 4 8 7 5 Class Distribution -------------------- 47% | Mutant 41% | Scavenger-Mutant 11% | Scavenger-Skirmisher Dominant Class ---------------- Mutant | -10/Materials Scavenger-Mutant | -9/Materials Scavenger-Skirmisher | -8/Materials Resources | -11 -10 -9 -8 ----------- Run | Yrd Mat Mat Mat Matter Collected 1053 | 221 326 357 149 Remotely . | . . . . Salvage Created 1455 | . 515 705 235 Parts 86 | . 34 38 14 Haulers Intercepted 4 | . 1 2 1 Recyclers Shooed 1 | . 1 . . Parts Field Recycled . | . . . . Retrieved Matter . | . . . . Parts Self-Destructed . | . . . . Prevented . | . . . . Kills | -11 -10 -9 -8 ------- Run | Yrd Mat Mat Mat Combat Hostiles Destroyed 28 | . 12 14 2 Guns 23 | . 10 11 2 Cannons 5 | . 2 3 . Classes Destroyed 9 | . 7 2 . Worker 3 | . 1 2 . Tunneler 1 | . 1 . . Hauler 4 | . 1 2 1 Recycler 2 | . 1 . 1 Watcher 4 | . 1 2 1 Swarmer 3 | . 3 . . Grunt 19 | . 9 9 1 Brawler 1 | . . 1 . Sentry 5 | . . 4 1 Best Kill Streak 7 | . 3 7 1 Combat Bots Only 4 | . 2 4 1 Max Kills in Single Turn 1 | . 1 1 1 Gunslinging . | . . . . Exploded . | . . . . Melee . | . . . . Uniques/NPCs Destroyed . | . . . . Combat | -11 -10 -9 -8 -------- Run | Yrd Mat Mat Mat Hostile Shots Fired 224 | . 52 97 75 Missed 51 | . 16 27 8 Damage Taken 2575 | . 379 871 1325 Core 799 | . 96 140 563 Absorbed by Shields . | . . . . Core Remaining (%) 75 | 100 61 65 . Volleys Fired 112 | . 45 52 15 Largest 2 | . 2 2 2 Hottest 85 | . 58 58 85 Shots Fired 222 | . 90 102 30 Gun 174 | . 87 58 29 Cannon 47 | . 3 44 . Launcher 1 | . . . 1 Special . | . . . . Kinetic 216 | . 90 102 24 Thermal 5 | . . . 5 Explosive 1 | . . . 1 Electromagnetic . | . . . . Robot Hit Streak 11 | . 11 9 7 Robot Miss Streak 5 | . 5 3 4 Penetration Max . | . . . . Secondary Targets . | . . . . Shots Hit Robots 144 | . 56 69 19 Core Hits 80 | . 29 37 14 Critical Kills . | . . . . Critical Parts Destroyed 1 | . . 1 . Critical Strikes 4 | . . 4 . Destroy 1 | . . 1 . Blast 3 | . . 3 . Melee Attacks . | . . . . Impact . | . . . . Slashing . | . . . . Piercing . | . . . . Sneak Attacks . | . . . . Combat Hostiles . | . . . . Follow-up Attacks . | . . . . Damage Inflicted 2274 | . 689 1188 397 Guns 1653 | . 641 718 294 Cannons 513 | . 48 465 . Explosions 103 | . . . 103 Melee . | . . . . Ramming 5 | . . 5 . Kinetic 2125 | . 689 1183 253 Thermal 41 | . . . 41 Explosive 103 | . . . 103 Electromagnetic . | . . . . Impact . | . . . . Slashing . | . . . . Piercing . | . . . . Highest Corruption . | . . . . Average Corruption . | . . . . Corruption Purged . | . . . . Corruption Blocked . | . . . . Overload Shots . | . . . . Overflow Damage . | . . . . Projectiles . | . . . . Explosions . | . . . . Melee . | . . . . Knockbacks 7 | . 1 6 . Impact . | . . . . Kinetic 7 | . 1 6 . Secondary . | . . . . Self-Inflicted Damage . | . . . . Shots . | . . . . Rammed . | . . . . Targets Rammed 1 | . . 1 . Kicked 1 | . . 1 . Crushed . | . . . . Highest Temperature 200 | . 16 200 194 Average Temperature 35 | . 3 49 89 Received Heat Transfer 1074 | . 168 402 504 Siege Activations . | . . . . Robots Corrupted . | . . . . Combat Hostiles . | . . . . Parts Fried . | . . . . Impact Corruptions . | . . . . Robots Melted . | . . . . Combat Hostiles . | . . . . Parts Melted . | . . . . Heat Transferred 74 | . . . 74 Parts Sabotaged . | . . . . Parts Stolen . | . . . . Parts Stripped . | . . . . Power Chain Reactions . | . . . . Alert | -11 -10 -9 -8 ------- Run | Yrd Mat Mat Mat Peak Influence 532 | . 286 532 277 Initial 161 | . . 106 161 Average 217 | . 144 320 218 Maximum Alert Level 2 | . 1 2 1 Low Security (%) 36 | 100 53 19 24 Level 1 56 | . 46 60 75 Level 2 7 | . . 20 . Level 3 . | . . . . Level 4 . | . . . . Level 5 . | . . . . High Security . | . . . . Max Security . | . . . . Squads Dispatched 5 | . 3 1 1 Investigation 3 | . 2 1 . Extermination . | . . . . Reinforcement 1 | . 1 . . Assault . | . . . . Garrison 1 | . . . 1 Intercept . | . . . . Searches Triggered . | . . . . Construction Impeded . | . . . . Haulers Reinforced . | . . . . Active Scanning Responses . | . . . . Cargo Convoy Interrupts . | . . . . Stealth | -11 -10 -9 -8 --------- Run | Yrd Mat Mat Mat Distress Signals 4 | . . 3 1 Communications Jammed . | . . . . Distress Signals . | . . . . Times Spotted 62 | . 24 25 13 Peak Tracking Total 10 | . 6 5 10 Tactical Retreats 6 | . 4 2 . Traps | -11 -10 -9 -8 ------- Run | Yrd Mat Mat Mat Traps Triggered 1 | . 1 . . Indirectly . | . . . . Trap Hack Attempts . | . . . . Triggered . | . . . . Disarmed . | . . . . Reprogrammed . | . . . . Reused . | . . . . Traps Extracted . | . . . . Installed . | . . . . Triggered . | . . . . Machines | -11 -10 -9 -8 ---------- Run | Yrd Mat Mat Mat Machines Disabled 4 | . . 3 1 Max in Single Turn 1 | . . 1 1 Machines Repaired . | . . . . Machines Dismantled . | . . . . Machines Sabotaged . | . . . . Overloaded Fab Kills . | . . . . Hacking | -11 -10 -9 -8 --------- Run | Yrd Mat Mat Mat Machines Accessed 4 | . 3 1 . Terminals 4 | . 3 1 . Fabricators . | . . . . Repair Stations . | . . . . Recycling Units . | . . . . Scanalyzers . | . . . . Garrison Access . | . . . . Total Hacks 13 | . 10 3 . Successful 3 | . 2 1 . Failed 10 | . 8 2 . Catastrophic 6 | . 4 2 . Database Lockouts . | . . . . Manual 14 | . 10 4 . Terminals 13 | . 10 3 . Fabricators . | . . . . Repair Stations . | . . . . Recycling Units . | . . . . Scanalyzers . | . . . . Garrison Access . | . . . . Terminal Hacks . | . . . . Fabricator Hacks . | . . . . Repair Station Hacks . | . . . . Recycling Unit Hacks . | . . . . Scanalyzer . | . . . . Garrison Access Hacks . | . . . . Unauthorized Hacks 3 | . 2 1 . Terminals 3 | . 2 1 . Botnet 3 | . 2 1 . Fabricators . | . . . . Repair Stations . | . . . . Recycling Units . | . . . . Scanalyzers . | . . . . Garrison Access . | . . . . Data Cores Recovered . | . . . . Used . | . . . . Hacking Detections 4 | . 3 1 . Full Trace Events 4 | . 3 1 . Feedback Events . | . . . . Feedback Blocked . | . . . . Robot Schematics Acquired . | . . . . Robots Built . | . . . . Authchips . | . . . . Time . | . . . . Total Robot Build Rating . | . . . . Part Schematics Acquired . | . . . . Parts Built . | . . . . Authchips . | . . . . Time . | . . . . Total Part Build Rating . | . . . . Parts Repaired . | . . . . Time . | . . . . Parts Recycled . | . . . . Recycled Matter . | . . . . Retrieved Matter . | . . . . Retrieved Components . | . . . . Parts Scanalyzed . | . . . . Part Schematics Acquired . | . . . . Parts Damaged . | . . . . Bothacking | -11 -10 -9 -8 ------------ Run | Yrd Mat Mat Mat Used RIF Installer . | . . . . Robots Hacked . | . . . . Non-combat . | . . . . Combat . | . . . . Robot Hacks Applied . | . . . . Relay Couplers Released . | . . . . Fabnet Peak Effective % . | . . . . Robots Rewired . | . . . . Allies Hacked . | . . . . Hacks Repelled . | . . . . Allies | -11 -10 -9 -8 -------- Run | Yrd Mat Mat Mat Total Allies . | . . . . Largest Group . | . . . . Highest-Rated Group . | . . . . Highest-Rated Ally . | . . . . Total Orders . | . . . . Ally Attacks . | . . . . Total Damage . | . . . . Kills . | . . . . Allies Corrupted . | . . . . Allies Melted . | . . . . Intel | -11 -10 -9 -8 ------- Run | Yrd Mat Mat Mat Robot Analysis Total . | . . . . Derelict Logs Recovered . | . . . . Drone Launches . | . . . . Drone Recoveries . | . . . . Exploration | -11 -10 -9 -8 ------------- Run | Yrd Mat Mat Mat Turns Passed 1466 | 48 586 514 318 Spaces Moved 717 | 35 307 276 99 Core 27 | 21 . . 6 Treads . | . . . . Legs 690 | 14 307 276 93 Wheels . | . . . . Hover . | . . . . Flight . | . . . . Fastest Speed 50 | 50 120 120 120 Average Speed 134 | 98 130 120 200 Slowest Speed 750 | 150 190 120 750 Overloaded Moves . | . . . . Propulsion Burnouts . | . . . . Robots Hopped . | . . . . Cave-ins Triggered . | . . . . Exploration Rate (%) 29 | 3 57 45 11 Regions Visited 3 Branch Regions . Pre-discovered Areas . | . . . . Known Exits Taken . | . . . . Unknown Exits Taken 3 | 1 1 1 . Scrap Searched . | . . . . Spaces Dug . | . . . . Terrain Destroyed 6 | . . . 6 Melee . | . . . . Projectile . | . . . . AOE 6 | . . . 6 Terrain Rammed . | . . . . Walls Destroyed . | . . . . Machines Disabled . | . . . . Actions | -11 -10 -9 -8 --------- Run | Yrd Mat Mat Mat Total 1002 | 46 411 355 190 Wait 100 | . 43 . 57 Move 714 | 34 306 275 99 Hop . | . . . . Pick Up 19 | 6 7 3 3 Fast Attach 9 | 4 1 . 4 Attach 11 | 2 1 5 3 Detach . | . . . . Swap 20 | . 4 11 5 Drop 16 | . 4 8 4 Fire 112 | . 45 52 15 Melee . | . . . . Ram . | . . . . Kick 1 | . . 1 . Crush . | . . . . Escape Stasis . | . . . . Rewire . | . . . . Trap . | . . . . Miscellaneous . | . . . . Route ------- -11/Scrapyard -10/Materials (discovered 3 exits: *Mat x2 / [*Min]) -9/Materials (discovered 2 exits: [*Mat] / [*Min]) -8/Materials History --------- Turn | Location | Event 8 | -11/Scrapyard | Discovered new exit (range 16) 49 | -11/Scrapyard | Entered Materials 160 | -10/Materials | Discovered new exit (range 12) 310 | -10/Materials | Build established: Mutant 325 | -10/Materials | Discovered new exit (range 18) 544 | -10/Materials | Discovered new exit (range 18) 635 | -10/Materials | Entered another Materials area 635 | -9/Materials | Evolved 2 slots: Propulsion x2 923 | -9/Materials | Discovered new exit (range 16) 935 | -9/Materials | Build established: Scavenger-Mutant 1131 | -9/Materials | Discovered new exit (range 15) 1149 | -9/Materials | Entered another Materials area 1149 | -8/Materials | Evolved 2 slots: Utility x2 1414 | -8/Materials | Garrison activated, responded to threat 1437 | -8/Materials | Core integrity fell below 50% 1452 | -8/Materials | Core integrity fell below 20% 1467 | -8/Materials | Lost 10 parts (1p5n1u3w) 1467 | -8/Materials | Destroyed by L-31 Rogue with Katana Last Messages --------------- 01425_ U-05 Engineer builds a Door. 01428_ Aluminum Leg destroyed. 01428_ U-05 Engineer builds a Wall. 01432_ Hvy. Particle Gun destroyed. 01433_ U-05 Engineer builds a Wall. 01434_ K-01 Serf collects debris. 01434_ U-05 Engineer lays Concrete. 01436_ Imp. Sensor Array destroyed. 01436_ U-05 Engineer lays Concrete. 01439_ K-01 Serf collects debris. 01440_ Visual Processing Unit severed. 01441_ U-05 Engineer builds a Wall. 01444_ K-01 Serf collects debris. 01446_ U-05 Engineer lays Concrete. 01448_ Critical hit (Burn: +37). 01448_ K-01 Serf collects debris. 01449_ Imp. Signal Interpreter severed. 01449_ U-05 Engineer lays Concrete. 01453_ K-01 Serf collects debris. 01453_ U-05 Engineer lays Concrete. Map ----- +----------------------------------------------------+ | ?????????????????????????????????????????????????? | | ?????????????????????????????????????????????????? | | ?????????????????????????????????????????????????? | | ?????????????????????????????????????????????????? | | ?????????????????????????????????????????????????? | | ?????????????????????????????????????????????????? | | ?????????????????????????????????????????????????? | | ?????????????????????????????????????????????????? | | ?????????????????????????????????????????????????? | | ?????????????????????????????????????????????????? | | ?????????????????????????????????????????????????? | | ??????????????????????????????????? ?????????????? | | ??????????????????????????????????? ??????????? | | ??????????????????????????????????? #?????????? | | ??????????????????????????????????? #?????????? | | ?????????????????????????????????? #?????????? | | ?????????????????????????????????# #?????????? | | ?????????????????????????????????# #?????????? | | ?????????????????????###???????### #?????????? | | ????????????????????##! ???????+ #?????????? | | ????????????????????#! ???????# #?????????? | | ????????????????????#! #+#??### #?????????? | | ????????????????????#! ??? #?????????? | | ?????????????????????! g#???# #########?? | | ??????????????????????? #???# ## ] [#?? | | ????????????????????????#@#???# ## #?? | | ????????????????????????#l#???# ## """ !#?? | | ????????????????????????#/#####+## ## """ #?? | | ????????????????????????# = # ## """ #?? | | ????????????????????????# """ # ## #?? | | ????????????????????????# "" = # #####+####? | | ????????????????????????# """ # #? | | ????????????????????????# %[+ #? | | ????????????????????????# """ # #? | | ????????????????" ?????# """ ######## #####? | | ?????????????? ???# """ #?????# #????? | | ???????????????? ?# ##?????# #????? | | ???????????????????# ################# ###### | | ???????????????????# ^ [[**= | | ???????????????????# ^^ [[!= | | ???????????????????# ^^ *[ | | ???????????????????###########+######+### ###### | | ??????????????????????????#! #? # #????? | | ??????????????????????????# * # # #????? | | ??????????????????????????# !=# """# +????? | | ??????????????????????????# "T" =#! """# #????? | | ??????????????????????????# """%!# """# #????? | | ??????????????????????????# = # # #????? | | ??????????????????????????#### ########## #????? | | ?????????????????????????????###????????# #????? | +----------------------------------------------------+ Best States ------------- Heat Dissipation 45 Energy Generation 14 Energy Capacity 265 Matter Stores 300 Matter Capacity 300 Sight Range 18 Robot Scan Range 15 Terrain Scan Density 10 Evasion (%) 55 Item Schematics ----------------- None Robot Schematics ------------------ None Fabricated ------------ Nothing Alien Tech Used ----------------- None Achievements -------------- None Challenges ------------ None Game ------ Seed ArmageddonMatterFacilitator Manual? 0 Play Time 00:18:39 Cumulative 18.4 hours Start 2024.07.02 @ 09:31:26 End 2024.07.02 @ 09:47:35 Sessions 1 Manual Loads 0 Difficulty Rogue Special Mode None Game No. 75 Rogue 75 Adventurer 0 Explorer 0 Win Type - Total 0 Types 0/0/0/0/0/0/0/0/0 Lore% 7 Gallery% 22 Achievement% 16 Wizard Run 0 Options --------- Layout 1 ASCII 0 Keyboard 0 Movement Mouse Keybinds 0 Fullscreen 1 Font 24/Smallcaps Map View 50x35 Zoom Use 0% Tactical HUD 1 Map Filters NONE Filters NONE Steam 1 RUN: 9815672d-95f1-458f-8940-b72d6cc9262a